[Event "Late-Titled-Tuesday-Blitz-February-06-2024"]
[Site "Chess.com"]
[Date "2024.02.06"]
[Round "5"]
[White "HalfIsCrayfish"]
[Black "topce"]
[Result "1-0"]
[WhiteElo "2582"]
[BlackElo "2393"]
[TimeControl "180+1"]
[EndTime "14:55:39 PST"]
[Termination "HalfIsCrayfish won on time"]

1. Nc3 {[%clk 0:03:00.9]} 1... e6 {[%clk 0:03:00.9]} 2. e4 {[%clk 0:03:00.3]}
2... d5 {[%clk 0:03:00.5]} 3. exd5 {[%clk 0:03:01.1]} 3... exd5 {[%clk
0:03:00.5]} 4. d4 {[%clk 0:03:02]} 4... Nf6 {[%clk 0:02:59.9]} 5. Bd3 {[%clk
0:03:01.7]} 5... c6 {[%clk 0:03:00.2]} 6. Bg5 {[%clk 0:03:01.8]} 6... Be7 {[%clk
0:02:59.5]} 7. Qd2 {[%clk 0:03:01.6]} 7... h6 {[%clk 0:02:58.5]} 8. Bh4 {[%clk
0:03:00]} 8... b5 {[%clk 0:02:37.7]} 9. Nf3 {[%clk 0:02:53.9]} 9... b4 {[%clk
0:02:33.3]} 10. Na4 {[%clk 0:02:54]} 10... Ne4 {[%clk 0:02:32.2]} 11. Bxe7
{[%clk 0:02:32.5]} 11... Nxd2 {[%clk 0:02:25.9]} 12. Bxd8 {[%clk 0:02:32.4]}
12... Nxf3+ {[%clk 0:02:25.6]} 13. gxf3 {[%clk 0:02:33.3]} 13... Kxd8 {[%clk
0:02:25.7]} 14. Rg1 {[%clk 0:02:32.5]} 14... g6 {[%clk 0:02:25.1]} 15. Kd2
{[%clk 0:02:26.8]} 15... Re8 {[%clk 0:02:08.8]} 16. f4 {[%clk 0:02:22.5]} 16...
Nd7 {[%clk 0:01:59.2]} 17. f3 {[%clk 0:02:13.8]} 17... Nf6 {[%clk 0:01:58]} 18.
f5 {[%clk 0:02:03.4]} 18... g5 {[%clk 0:01:56.8]} 19. Nc5 {[%clk 0:01:58.5]}
19... a5 {[%clk 0:01:52]} 20. a3 {[%clk 0:01:55.9]} 20... bxa3 {[%clk 0:01:42]}
21. Rxa3 {[%clk 0:01:54.3]} 21... Nd7 {[%clk 0:01:42.6]} 22. Nxd7 {[%clk
0:01:42.9]} 22... Bxd7 {[%clk 0:01:39.5]} 23. Rga1 {[%clk 0:01:43.6]} 23... Kc7
{[%clk 0:00:53.5]} 24. Rxa5 {[%clk 0:01:42.1]} 24... Rxa5 {[%clk 0:00:54.1]} 25.
Rxa5 {[%clk 0:01:42.7]} 25... Kb6 {[%clk 0:00:54.4]} 26. Ra6+ {[%clk 0:01:42.4]}
26... Kb7 {[%clk 0:00:54.3]} 27. Ra1 {[%clk 0:01:43.1]} 27... f6 {[%clk
0:00:51.6]} 28. b3 {[%clk 0:01:10.9]} 28... h5 {[%clk 0:00:48.5]} 29. Re1 {[%clk
0:01:02.2]} 29... Rxe1 {[%clk 0:00:44]} 30. Kxe1 {[%clk 0:01:03.1]} 30... Kb6
{[%clk 0:00:42.2]} 31. c3 {[%clk 0:01:01.1]} 31... c5 {[%clk 0:00:39.4]} 32.
dxc5+ {[%clk 0:01:00.5]} 32... Kxc5 {[%clk 0:00:40.3]} 33. Kd2 {[%clk
0:00:54.6]} 33... Kd6 {[%clk 0:00:40.4]} 34. Ke3 {[%clk 0:00:54.3]} 34... Ke5
{[%clk 0:00:40.7]} 35. b4 {[%clk 0:00:53.5]} 35... Bxf5 {[%clk 0:00:40.1]} 36.
Bxf5 {[%clk 0:00:53.4]} 36... Kxf5 {[%clk 0:00:40.5]} 37. Kd4 {[%clk 0:00:40.7]}
37... Ke6 {[%clk 0:00:40.8]} 38. b5 {[%clk 0:00:32]} 38... Kd6 {[%clk
0:00:39.3]} 39. b6 {[%clk 0:00:32.4]} 39... Kc6 {[%clk 0:00:38]} 40. b7 {[%clk
0:00:33]} 40... Kxb7 {[%clk 0:00:37.9]} 41. Kxd5 {[%clk 0:00:33.6]} 41... f5
{[%clk 0:00:35.1]} 42. Ke5 {[%clk 0:00:32.1]} 42... g4 {[%clk 0:00:34.7]} 43.
fxg4 {[%clk 0:00:31.5]} 43... fxg4 {[%clk 0:00:35.2]} 44. Kf5 {[%clk 0:00:32.1]}
44... Kc6 {[%clk 0:00:35.5]} 45. Kg5 {[%clk 0:00:32.5]} 45... Kc5 {[%clk
0:00:35.9]} 46. Kxh5 {[%clk 0:00:32.9]} 46... Kc4 {[%clk 0:00:35.8]} 47. Kxg4
{[%clk 0:00:33.3]} 47... Kxc3 {[%clk 0:00:36.2]} 48. h4 {[%clk 0:00:33.7]} 48...
Kd4 {[%clk 0:00:36.7]} 49. Kg5 {[%clk 0:00:34]} 49... Ke5 {[%clk 0:00:37]} 50.
h5 {[%clk 0:00:34.4]} 50... Ke6 {[%clk 0:00:37.4]} 51. Kg6 {[%clk 0:00:35.1]}
51... Ke7 {[%clk 0:00:37.7]} 52. Kg7 {[%clk 0:00:35.8]} 52... Ke8 {[%clk
0:00:37.2]} 53. h6 {[%clk 0:00:36.7]} 53... Ke7 {[%clk 0:00:36.9]} 54. h7 {[%clk
0:00:37.6]} 54... Ke6 {[%clk 0:00:36.4]} 55. h8=Q {[%clk 0:00:38.5]} 55... Ke5
{[%clk 0:00:37]} 56. Qf8 {[%clk 0:00:38.9]} 56... Ke6 {[%clk 0:00:30.5]} 57. Qc5
{[%clk 0:00:36.3]} 57... Kd7 {[%clk 0:00:27.8]} 58. Kf6 {[%clk 0:00:35.4]} 58...
Kd8 {[%clk 0:00:23.7]} 59. Ke6 {[%clk 0:00:35.4]} 1-0

[Event "Late-Titled-Tuesday-Blitz-February-06-2024"]
[Site "Chess.com"]
[Date "2024.02.06"]
[Round "5"]
[White "ansko1999"]
[Black "ChessLover0108"]
[Result "0-1"]
[WhiteElo "2693"]
[BlackElo "3010"]
[TimeControl "180+1"]
[EndTime "14:55:40 PST"]
[Termination "ChessLover0108 won by resignation"]

1. e4 {[%clk 0:03:00.9]} 1... Nf6 {[%clk 0:02:58.6]} 2. e5 {[%clk 0:03:00.5]}
2... Nd5 {[%clk 0:02:59.3]} 3. d4 {[%clk 0:03:00.2]} 3... d6 {[%clk 0:02:59.4]}
4. Nf3 {[%clk 0:02:58.6]} 4... dxe5 {[%clk 0:02:58.9]} 5. Nxe5 {[%clk
0:02:59.5]} 5... c6 {[%clk 0:02:57.9]} 6. Be2 {[%clk 0:02:58.2]} 6... Nd7 {[%clk
0:02:56.5]} 7. Nxd7 {[%clk 0:02:56.2]} 7... Bxd7 {[%clk 0:02:55.7]} 8. O-O
{[%clk 0:02:56.4]} 8... Bf5 {[%clk 0:02:55.7]} 9. a3 {[%clk 0:02:40.3]} 9... g6
{[%clk 0:02:51.4]} 10. c4 {[%clk 0:02:38.5]} 10... Bxb1 {[%clk 0:02:39.6]} 11.
Rxb1 {[%clk 0:02:35.4]} 11... Nc7 {[%clk 0:02:38.2]} 12. Be3 {[%clk 0:02:26.4]}
12... Bg7 {[%clk 0:02:38.3]} 13. Bf3 {[%clk 0:02:26.1]} 13... O-O {[%clk
0:02:33.3]} 14. Qd2 {[%clk 0:02:16]} 14... Qd7 {[%clk 0:02:27.3]} 15. Rfd1
{[%clk 0:02:14.5]} 15... Rfd8 {[%clk 0:02:27.2]} 16. Qb4 {[%clk 0:02:10.7]}
16... Na6 {[%clk 0:01:46.3]} 17. Qa4 {[%clk 0:02:03.4]} 17... Nc7 {[%clk
0:01:16.2]} 18. Qb4 {[%clk 0:02:01.3]} 18... b6 {[%clk 0:01:08.3]} 19. Qa4
{[%clk 0:01:51.3]} 19... b5 {[%clk 0:01:07.2]} 20. Qc2 {[%clk 0:01:32.6]} 20...
bxc4 {[%clk 0:01:05.5]} 21. Qxc4 {[%clk 0:01:33.5]} 21... Nd5 {[%clk 0:01:05.3]}
22. Bd2 {[%clk 0:01:25.9]} 22... Rac8 {[%clk 0:01:02.8]} 23. Ba5 {[%clk
0:01:24.9]} 23... Nb6 {[%clk 0:01:02]} 24. Bxb6 {[%clk 0:01:17.5]} 24... axb6
{[%clk 0:01:02.9]} 25. d5 {[%clk 0:01:17]} 25... c5 {[%clk 0:00:33.2]} 26. a4
{[%clk 0:01:10.7]} 26... Bd4 {[%clk 0:00:32.2]} 27. b3 {[%clk 0:01:01.5]} 27...
h5 {[%clk 0:00:23]} 28. g3 {[%clk 0:00:50.4]} 28... Qf5 {[%clk 0:00:22.7]} 29.
Qd3 {[%clk 0:00:49.2]} 29... Qf6 {[%clk 0:00:20.8]} 30. Qe2 {[%clk 0:00:44]}
30... Kg7 {[%clk 0:00:19.8]} 31. Kg2 {[%clk 0:00:44.3]} 31... Re8 {[%clk
0:00:18.6]} 32. Re1 {[%clk 0:00:38.5]} 32... h4 {[%clk 0:00:14.8]} 33. Rbd1
{[%clk 0:00:24.6]} 33... Qf5 {[%clk 0:00:13.7]} 34. Qe4 {[%clk 0:00:22.2]} 34...
h3+ {[%clk 0:00:07.3]} 35. Kg1 {[%clk 0:00:21.7]} 35... Qf6 {[%clk 0:00:08.2]}
36. Qf4 {[%clk 0:00:15.2]} 36... Qxf4 {[%clk 0:00:04.8]} 37. gxf4 {[%clk
0:00:16.1]} 37... Bf6 {[%clk 0:00:04.7]} 38. Bg4 {[%clk 0:00:15.4]} 38... Rcd8
{[%clk 0:00:03.1]} 39. Bxh3 {[%clk 0:00:15.5]} 39... Rh8 {[%clk 0:00:04]} 40.
Bg4 {[%clk 0:00:15.3]} 40... Rh4 {[%clk 0:00:04.4]} 41. h3 {[%clk 0:00:15.7]}
41... Kf8 {[%clk 0:00:03.2]} 42. Kg2 {[%clk 0:00:15.5]} 42... Bd4 {[%clk
0:00:03.1]} 43. f5 {[%clk 0:00:15.3]} 43... gxf5 {[%clk 0:00:02.8]} 44. Bxf5
{[%clk 0:00:16.2]} 44... Rf4 {[%clk 0:00:03.4]} 45. Be4 {[%clk 0:00:15.7]} 45...
Rxf2+ {[%clk 0:00:03.9]} 46. Kg3 {[%clk 0:00:16]} 46... Rb2 {[%clk 0:00:04.2]}
47. Rd3 {[%clk 0:00:15.7]} 47... Bf2+ {[%clk 0:00:04.4]} 0-1

[Event "Late-Titled-Tuesday-Blitz-February-06-2024"]
[Site "Chess.com"]
[Date "2024.02.06"]
[Round "5"]
[White "jinbojinbo"]
[Black "marianokar"]
[Result "1-0"]
[WhiteElo "2631"]
[BlackElo "2448"]
[TimeControl "180+1"]
[EndTime "14:55:41 PST"]
[Termination "jinbojinbo won on time"]

1. Nf3 {[%clk 0:03:00.9]} 1... c5 {[%clk 0:02:56.6]} 2. c4 {[%clk 0:02:58.3]}
2... Nc6 {[%clk 0:02:56.9]} 3. Nc3 {[%clk 0:02:58]} 3... g6 {[%clk 0:02:54.6]}
4. e3 {[%clk 0:02:56.8]} 4... Nf6 {[%clk 0:02:52.1]} 5. d4 {[%clk 0:02:56]} 5...
cxd4 {[%clk 0:02:53]} 6. exd4 {[%clk 0:02:56.8]} 6... d5 {[%clk 0:02:53.4]} 7.
cxd5 {[%clk 0:02:45.3]} 7... Nxd5 {[%clk 0:02:48.2]} 8. Bc4 {[%clk 0:02:45.5]}
8... Nxc3 {[%clk 0:02:47.1]} 9. bxc3 {[%clk 0:02:46.4]} 9... Bg7 {[%clk
0:02:44.8]} 10. O-O {[%clk 0:02:46.6]} 10... O-O {[%clk 0:02:44.7]} 11. Re1
{[%clk 0:02:46]} 11... b6 {[%clk 0:02:43]} 12. Bg5 {[%clk 0:02:32.4]} 12... Bf6
{[%clk 0:02:40.3]} 13. Bxf6 {[%clk 0:02:30.8]} 13... exf6 {[%clk 0:02:41.2]} 14.
a4 {[%clk 0:02:25.6]} 14... Bb7 {[%clk 0:02:39.4]} 15. Qd2 {[%clk 0:02:25.6]}
15... Kg7 {[%clk 0:02:38.4]} 16. Ba2 {[%clk 0:02:23.4]} 16... Na5 {[%clk
0:02:33.7]} 17. Re3 {[%clk 0:02:20.6]} 17... Re8 {[%clk 0:02:29.6]} 18. Rae1
{[%clk 0:02:20.4]} 18... Rxe3 {[%clk 0:02:27.6]} 19. Rxe3 {[%clk 0:02:20.9]}
19... Qd7 {[%clk 0:02:17.7]} 20. Qe2 {[%clk 0:02:13.4]} 20... Bxf3 {[%clk
0:02:09.9]} 21. Qxf3 {[%clk 0:01:59.5]} 21... Re8 {[%clk 0:01:49.8]} 22. Rxe8
{[%clk 0:01:53]} 22... Qxe8 {[%clk 0:01:49.7]} 23. Qd1 {[%clk 0:01:52.9]} 23...
Qe7 {[%clk 0:01:41.5]} 24. h3 {[%clk 0:01:48.7]} 24... Qa3 {[%clk 0:01:40.2]}
25. Qc2 {[%clk 0:01:47.9]} 25... h5 {[%clk 0:01:28.2]} 26. Bd5 {[%clk
0:01:46.1]} 26... h4 {[%clk 0:01:12.8]} 27. Ba2 {[%clk 0:01:13.8]} 27... Nb7
{[%clk 0:00:51.2]} 28. Kh2 {[%clk 0:01:01.2]} 28... Qd6+ {[%clk 0:00:48.5]} 29.
g3 {[%clk 0:01:00.1]} 29... hxg3+ {[%clk 0:00:35.4]} 30. fxg3 {[%clk 0:01:01]}
30... Na5 {[%clk 0:00:33.1]} 31. Qg2 {[%clk 0:00:55.6]} 31... Qa3 {[%clk
0:00:26.2]} 32. Qc2 {[%clk 0:00:55.3]} 32... f5 {[%clk 0:00:23.5]} 33. h4 {[%clk
0:00:54.5]} 33... Qd6 {[%clk 0:00:20.5]} 34. Qd2 {[%clk 0:00:51.3]} 34... Nc6
{[%clk 0:00:18.4]} 35. Kg2 {[%clk 0:00:24.4]} 35... a6 {[%clk 0:00:12]} 36. Kh2
{[%clk 0:00:22.6]} 36... b5 {[%clk 0:00:12]} 37. axb5 {[%clk 0:00:23.5]} 37...
axb5 {[%clk 0:00:12.5]} 38. Qf4 {[%clk 0:00:23.4]} 38... Qxf4 {[%clk 0:00:11.5]}
39. gxf4 {[%clk 0:00:23.5]} 39... b4 {[%clk 0:00:11.8]} 40. cxb4 {[%clk
0:00:18]} 40... Nxb4 {[%clk 0:00:11.6]} 41. Bb3 {[%clk 0:00:17.9]} 41... Kf6
{[%clk 0:00:08.4]} 42. Kg3 {[%clk 0:00:18.3]} 42... Ke7 {[%clk 0:00:08]} 43. Kf3
{[%clk 0:00:18.6]} 43... Nc6 {[%clk 0:00:04.8]} 44. Ke3 {[%clk 0:00:18.6]} 44...
Nd8 {[%clk 0:00:05.2]} 45. Bd5 {[%clk 0:00:18.3]} 45... Kd6 {[%clk 0:00:05]} 46.
Bf3 {[%clk 0:00:17.4]} 46... Ne6 {[%clk 0:00:03.9]} 47. Bd1 {[%clk 0:00:17.5]}
47... Nc7 {[%clk 0:00:03.1]} 48. Bb3 {[%clk 0:00:16.6]} 1-0

[Event "Late-Titled-Tuesday-Blitz-February-06-2024"]
[Site "Chess.com"]
[Date "2024.02.06"]
[Round "5"]
[White "nikitadovbnya2008"]
[Black "VitorBronson"]
[Result "1-0"]
[WhiteElo "2354"]
[BlackElo "2492"]
[TimeControl "180+1"]
[EndTime "14:55:41 PST"]
[Termination "nikitadovbnya2008 won on time"]

1. d4 {[%clk 0:03:00.9]} 1... d5 {[%clk 0:02:40.1]} 2. c4 {[%clk 0:02:59.5]}
2... c6 {[%clk 0:02:39.4]} 3. Nc3 {[%clk 0:02:59.7]} 3... Nf6 {[%clk 0:02:38.8]}
4. e3 {[%clk 0:03:00.1]} 4... e6 {[%clk 0:02:37.4]} 5. Nf3 {[%clk 0:02:59.4]}
5... Nbd7 {[%clk 0:02:37]} 6. Bd3 {[%clk 0:03:00.1]} 6... dxc4 {[%clk
0:02:37.1]} 7. Bxc4 {[%clk 0:03:01]} 7... b5 {[%clk 0:02:37.6]} 8. Bd3 {[%clk
0:03:01.7]} 8... Bd6 {[%clk 0:02:37.1]} 9. O-O {[%clk 0:02:59.1]} 9... Bb7
{[%clk 0:02:37.2]} 10. a4 {[%clk 0:02:58.7]} 10... a6 {[%clk 0:02:35.8]} 11. Bd2
{[%clk 0:02:48.7]} 11... O-O {[%clk 0:02:35.5]} 12. Rc1 {[%clk 0:02:48.4]} 12...
e5 {[%clk 0:02:35.6]} 13. dxe5 {[%clk 0:02:31.4]} 13... Nxe5 {[%clk 0:02:35.7]}
14. Be2 {[%clk 0:02:28.6]} 14... b4 {[%clk 0:02:29.4]} 15. Na2 {[%clk
0:02:21.2]} 15... c5 {[%clk 0:02:27.4]} 16. Nxe5 {[%clk 0:02:04.4]} 16... Bxe5
{[%clk 0:02:27]} 17. Rxc5 {[%clk 0:02:03.4]} 17... Bxh2+ {[%clk 0:02:27.2]} 18.
Kxh2 {[%clk 0:01:40.6]} 18... Qd6+ {[%clk 0:02:23.8]} 19. Kg1 {[%clk 0:01:40.7]}
19... Qxc5 {[%clk 0:02:20.5]} 20. Bxb4 {[%clk 0:01:40.6]} 20... Qg5 {[%clk
0:02:03.7]} 21. Bf3 {[%clk 0:01:40.3]} 21... Bxf3 {[%clk 0:02:02.7]} 22. Qxf3
{[%clk 0:01:41.2]} 22... Rfd8 {[%clk 0:01:55.9]} 23. Bc3 {[%clk 0:01:27.6]}
23... Nd5 {[%clk 0:01:45.6]} 24. Bd4 {[%clk 0:01:25]} 24... Rac8 {[%clk
0:01:19]} 25. Nc3 {[%clk 0:01:24.5]} 25... Nb4 {[%clk 0:01:11.7]} 26. Ne4 {[%clk
0:01:20.8]} 26... Qd5 {[%clk 0:01:11.6]} 27. Qg3 {[%clk 0:01:02.2]} 27... Kf8
{[%clk 0:00:57.2]} 28. Qxg7+ {[%clk 0:00:49.7]} 28... Ke7 {[%clk 0:00:56.9]} 29.
Bf6+ {[%clk 0:00:22.8]} 29... Kd7 {[%clk 0:00:56.1]} 30. Bxd8 {[%clk 0:00:22.8]}
30... Kxd8 {[%clk 0:00:56.3]} 31. Qf8+ {[%clk 0:00:20.4]} 31... Kd7 {[%clk
0:00:53.4]} 32. Nf6+ {[%clk 0:00:19.1]} 32... Ke6 {[%clk 0:00:41.5]} 33. Nxd5
{[%clk 0:00:19]} 33... Rxf8 {[%clk 0:00:39.5]} 34. Nxb4 {[%clk 0:00:19.4]} 34...
Rb8 {[%clk 0:00:39.5]} 35. Nd3 {[%clk 0:00:19.8]} 35... Rb3 {[%clk 0:00:39.7]}
36. Rd1 {[%clk 0:00:20.1]} 36... Kf6 {[%clk 0:00:38.8]} 37. Kf1 {[%clk
0:00:20.6]} 37... a5 {[%clk 0:00:38.5]} 38. Ke2 {[%clk 0:00:21.1]} 38... Rb8
{[%clk 0:00:37.9]} 39. Rd2 {[%clk 0:00:21.3]} 39... Rc8 {[%clk 0:00:38.3]} 40.
Ne1 {[%clk 0:00:18.9]} 40... Rg8 {[%clk 0:00:38.8]} 41. Rc2 {[%clk 0:00:18.7]}
41... h5 {[%clk 0:00:38.8]} 42. Rc5 {[%clk 0:00:18.8]} 42... Rg5 {[%clk
0:00:39.2]} 43. Rxg5 {[%clk 0:00:18]} 43... h4 {[%clk 0:00:05.7]} 44. Rh5 {[%clk
0:00:16.6]} 44... h3 {[%clk 0:00:05.5]} 45. Rxh3 {[%clk 0:00:16.7]} 45... Ke7
{[%clk 0:00:03.8]} 46. Rf3 {[%clk 0:00:17.2]} 46... f5 {[%clk 0:00:04]} 47. Rf4
{[%clk 0:00:18.1]} 47... Ke6 {[%clk 0:00:04.4]} 48. Rd4 {[%clk 0:00:19]} 48...
Ke5 {[%clk 0:00:04.7]} 49. f4+ {[%clk 0:00:19.9]} 49... Ke6 {[%clk 0:00:05.2]}
50. Kf3 {[%clk 0:00:20.5]} 1-0

[Event "Late-Titled-Tuesday-Blitz-February-06-2024"]
[Site "Chess.com"]
[Date "2024.02.06"]
[Round "5"]
[White "AmanteDeMoi"]
[Black "ACollins05"]
[Result "1/2-1/2"]
[WhiteElo "2590"]
[BlackElo "2433"]
[TimeControl "180+1"]
[EndTime "14:55:44 PST"]
[Termination "Game drawn by repetition"]

1. Nf3 {[%clk 0:03:00.9]} 1... d5 {[%clk 0:02:46.6]} 2. e3 {[%clk 0:03:01.1]}
2... Nf6 {[%clk 0:02:43.2]} 3. c4 {[%clk 0:03:01]} 3... e6 {[%clk 0:02:39.3]} 4.
b3 {[%clk 0:03:01.1]} 4... Be7 {[%clk 0:02:39]} 5. Bb2 {[%clk 0:02:59.9]} 5...
c5 {[%clk 0:02:39.1]} 6. cxd5 {[%clk 0:02:59]} 6... exd5 {[%clk 0:02:38.9]} 7.
Be2 {[%clk 0:02:58.8]} 7... Nc6 {[%clk 0:02:38.9]} 8. O-O {[%clk 0:02:59.7]}
8... O-O {[%clk 0:02:39.1]} 9. d4 {[%clk 0:03:00.6]} 9... cxd4 {[%clk
0:02:37.9]} 10. Nxd4 {[%clk 0:03:01.5]} 10... Bd7 {[%clk 0:02:31]} 11. Nc3
{[%clk 0:03:01.5]} 11... Rc8 {[%clk 0:02:27.1]} 12. Rc1 {[%clk 0:03:00.6]} 12...
Qa5 {[%clk 0:02:24.2]} 13. Bf3 {[%clk 0:02:59.5]} 13... Rfd8 {[%clk 0:02:21.7]}
14. Qd2 {[%clk 0:02:54.5]} 14... Nxd4 {[%clk 0:02:11.9]} 15. Qxd4 {[%clk
0:02:54.1]} 15... Be6 {[%clk 0:02:12.1]} 16. Rfd1 {[%clk 0:02:53.2]} 16... Bc5
{[%clk 0:02:10.1]} 17. Qh4 {[%clk 0:02:49.4]} 17... Be7 {[%clk 0:02:03.2]} 18.
a4 {[%clk 0:02:16]} 18... Qb6 {[%clk 0:01:57.8]} 19. Nb5 {[%clk 0:02:10.7]}
19... a6 {[%clk 0:01:32.7]} 20. Nd4 {[%clk 0:02:10.4]} 20... Qd6 {[%clk
0:01:17.3]} 21. Nxe6 {[%clk 0:01:29.6]} 21... fxe6 {[%clk 0:01:17.1]} 22. Qd4
{[%clk 0:01:25.7]} 22... Ne8 {[%clk 0:01:12.6]} 23. e4 {[%clk 0:01:14.8]} 23...
dxe4 {[%clk 0:00:59.4]} 24. Qxe4 {[%clk 0:01:02.9]} 24... Rxc1 {[%clk
0:00:58.6]} 25. Rxc1 {[%clk 0:01:03.7]} 25... b5 {[%clk 0:00:46.8]} 26. axb5
{[%clk 0:00:54.5]} 26... axb5 {[%clk 0:00:47.7]} 27. Bg4 {[%clk 0:00:43.6]}
27... Nf6 {[%clk 0:00:39.4]} 28. Qxe6+ {[%clk 0:00:42.9]} 28... Qxe6 {[%clk
0:00:30.9]} 29. Bxe6+ {[%clk 0:00:43.8]} 29... Kf8 {[%clk 0:00:31.6]} 30. Rc8
{[%clk 0:00:21.1]} 30... Rxc8 {[%clk 0:00:30.4]} 31. Bxc8 {[%clk 0:00:22]} 31...
Bc5 {[%clk 0:00:27.1]} 32. Bf5 {[%clk 0:00:15.8]} 32... h6 {[%clk 0:00:22.6]}
33. Kf1 {[%clk 0:00:16.1]} 33... Ke7 {[%clk 0:00:22.1]} 34. h3 {[%clk
0:00:15.9]} 34... g5 {[%clk 0:00:20.5]} 35. Ke2 {[%clk 0:00:15.6]} 35... Nd5
{[%clk 0:00:20.5]} 36. g3 {[%clk 0:00:13.3]} 36... Nb4 {[%clk 0:00:11.6]} 37.
Kf3 {[%clk 0:00:11.6]} 37... Nc6 {[%clk 0:00:11.1]} 38. Ke4 {[%clk 0:00:08.8]}
38... Na5 {[%clk 0:00:08]} 39. Kd5 {[%clk 0:00:03.9]} 39... Bxf2 {[%clk
0:00:07.7]} 40. b4 {[%clk 0:00:03.7]} 40... Nc4 {[%clk 0:00:06.7]} 41. Bg7
{[%clk 0:00:02.4]} 41... Bxg3 {[%clk 0:00:06.2]} 42. Bxh6 {[%clk 0:00:02.9]}
42... Bf4 {[%clk 0:00:06.2]} 43. Kc5 {[%clk 0:00:02.3]} 43... Nd6 {[%clk
0:00:05.3]} 44. Bd3 {[%clk 0:00:01.8]} 44... Be3+ {[%clk 0:00:05.6]} 45. Kc6
{[%clk 0:00:01.8]} 45... Bd2 {[%clk 0:00:05.9]} 46. Kc5 {[%clk 0:00:01.2]} 46...
Be3+ {[%clk 0:00:05.9]} 47. Kd5 {[%clk 0:00:01.9]} 47... Bd2 {[%clk 0:00:06.3]}
48. Kc5 {[%clk 0:00:02.1]} 48... Be3+ {[%clk 0:00:06.4]} 1/2-1/2

[Event "Late-Titled-Tuesday-Blitz-February-06-2024"]
[Site "Chess.com"]
[Date "2024.02.06"]
[Round "5"]
[White "ferdipy"]
[Black "Statham_01"]
[Result "0-1"]
[WhiteElo "2407"]
[BlackElo "2596"]
[TimeControl "180+1"]
[EndTime "14:55:46 PST"]
[Termination "Statham_01 won by checkmate"]

1. e4 {[%clk 0:03:00.8]} 1... e5 {[%clk 0:03:00.1]} 2. Nf3 {[%clk 0:02:59.1]}
2... Nf6 {[%clk 0:03:00]} 3. Nxe5 {[%clk 0:02:58.1]} 3... Nc6 {[%clk 0:03:00.5]}
4. Nxc6 {[%clk 0:02:53.6]} 4... dxc6 {[%clk 0:03:01.4]} 5. Nc3 {[%clk 0:02:54]}
5... Bc5 {[%clk 0:03:00.3]} 6. Be2 {[%clk 0:02:51.1]} 6... h5 {[%clk 0:02:50.1]}
7. h3 {[%clk 0:02:49.4]} 7... Qd4 {[%clk 0:02:48.7]} 8. O-O {[%clk 0:02:46.2]}
8... Qe5 {[%clk 0:02:37]} 9. d4 {[%clk 0:02:01.4]} 9... Bxd4 {[%clk 0:02:35.6]}
10. Bf4 {[%clk 0:01:44.6]} 10... Qxf4 {[%clk 0:02:22]} 11. Qxd4 {[%clk
0:01:44.7]} 11... Ng4 {[%clk 0:01:47.1]} 12. g3 {[%clk 0:01:22.8]} 12... Qf6
{[%clk 0:01:24.5]} 13. Qxf6 {[%clk 0:01:19]} 13... Nxf6 {[%clk 0:01:25.4]} 14.
Kg2 {[%clk 0:01:16.4]} 14... Be6 {[%clk 0:01:24.1]} 15. f4 {[%clk 0:01:14.2]}
15... g6 {[%clk 0:01:13.9]} 16. Rad1 {[%clk 0:01:11.5]} 16... Ke7 {[%clk
0:01:10.5]} 17. f5 {[%clk 0:01:07.5]} 17... gxf5 {[%clk 0:01:10.3]} 18. exf5
{[%clk 0:01:08.4]} 18... Bd5+ {[%clk 0:01:07.7]} 19. Bf3 {[%clk 0:01:03]} 19...
Rhd8 {[%clk 0:00:44.8]} 20. Rfe1+ {[%clk 0:00:57]} 20... Kf8 {[%clk 0:00:40.4]}
21. g4 {[%clk 0:00:56.8]} 21... hxg4 {[%clk 0:00:38.9]} 22. hxg4 {[%clk
0:00:57.7]} 22... Re8 {[%clk 0:00:24.4]} 23. g5 {[%clk 0:00:54.9]} 23... Nh7
{[%clk 0:00:16.4]} 24. g6 {[%clk 0:00:42]} 24... Nf6 {[%clk 0:00:16.2]} 25. Nxd5
{[%clk 0:00:39.1]} 25... cxd5 {[%clk 0:00:15.7]} 26. Rh1 {[%clk 0:00:33.4]}
26... fxg6 {[%clk 0:00:14.2]} 27. fxg6 {[%clk 0:00:34.3]} 27... c6 {[%clk
0:00:11.7]} 28. Rdf1 {[%clk 0:00:31.5]} 28... Kg7 {[%clk 0:00:11.9]} 29. Kf2
{[%clk 0:00:25.3]} 29... Rh8 {[%clk 0:00:11.6]} 30. Rhg1 {[%clk 0:00:25.1]}
30... Rh2+ {[%clk 0:00:10.7]} 31. Ke3 {[%clk 0:00:24.6]} 31... Rxc2 {[%clk
0:00:08.9]} 32. Kd4 {[%clk 0:00:20.2]} 32... c5+ {[%clk 0:00:06.4]} 33. Ke5
{[%clk 0:00:20]} 33... Re8+ {[%clk 0:00:05.9]} 34. Kd6 {[%clk 0:00:19.9]} 34...
Rxb2 {[%clk 0:00:06]} 35. Kxc5 {[%clk 0:00:10.7]} 35... Rc2+ {[%clk 0:00:04.6]}
36. Kd6 {[%clk 0:00:10.5]} 36... Rxa2 {[%clk 0:00:05.5]} 37. Bxd5 {[%clk
0:00:08.8]} 37... Ra6+ {[%clk 0:00:04.5]} 38. Kc5 {[%clk 0:00:08.2]} 38... Ra5+
{[%clk 0:00:04.7]} 39. Kc4 {[%clk 0:00:07.8]} 39... Rc8+ {[%clk 0:00:03.8]} 40.
Kd4 {[%clk 0:00:07.2]} 40... Rxd5+ {[%clk 0:00:04.7]} 41. Ke3 {[%clk 0:00:06.6]}
41... Re8+ {[%clk 0:00:05.2]} 42. Kf4 {[%clk 0:00:06.6]} 42... Re4+ {[%clk
0:00:05.8]} 43. Kf3 {[%clk 0:00:06.7]} 43... Rf5+ {[%clk 0:00:06.3]} 44. Kg3
{[%clk 0:00:06.7]} 44... Rg4+ {[%clk 0:00:07.2]} 45. Kh2 {[%clk 0:00:06.3]}
45... Rh5# {[%clk 0:00:08.1]} 0-1